bitfinex/quotes_BTCUSD_20250224
["timestamp","ask_amount","ask_price","bid_price","bid_amount"]
[1740423931363,0.0008499,94536.0,94535.0,0.18194569]
[1740423931584,0.01665778,94543.0,94535.0,0.18394569]
[1740423931780,0.211492,94567.0,94537.0,0.08407291]
[1740423931955,0.00781661,94560.0,94538.0,0.14904569]
[1740423932154,0.21149,94568.0,94544.0,0.157654]
[1740423932354,0.15,94575.0,94545.0,0.17854569]
[1740423932589,0.158647,94549.0,94545.0,0.17854569]
[1740423932789,0.15,94563.0,94545.0,0.17854569]
[1740423932790,0.00412272,94548.0,94545.0,0.17854569]
[1740423932994,0.15,94561.0,94545.0,0.17854569]
[1740423933196,0.158645,94551.0,94545.0,0.17854569]
[1740423933421,0.00412348,94550.0,94545.0,0.17754569]
[1740423933817,0.158652,94546.0,94545.0,0.17754569]
[1740423934017,0.16277397,94546.0,94545.0,0.0779]
[1740423934182,0.16277397,94546.0,94545.0,0.0749]
[1740423934583,0.16277397,94546.0,94545.0,0.0769]
[1740423934790,0.16277397,94546.0,94545.0,0.0789]
[1740423934983,0.16277397,94546.0,94545.0,0.0749]
[1740423935216,0.16277397,94546.0,94545.0,0.0789]
[1740423936330,0.16277397,94546.0,94545.0,0.0819]
[1740423936763,0.16277397,94546.0,94545.0,0.007]
[1740423937109,0.31277397,94546.0,94545.0,0.007]
[1740423937296,0.39251007,94546.0,94545.0,0.007]
[1740423937445,0.31277397,94546.0,94545.0,0.003]
[1740423937641,0.31277397,94546.0,94527.0,0.3092586]
[1740423937642,0.158683,94528.0,94527.0,0.3092586]
[1740423937986,0.16279507,94528.0,94527.0,0.3092586]
[1740423938740,0.17893818,94528.0,94527.0,0.3092586]
[1740423940293,0.17893818,94528.0,94527.0,0.3132586]
[1740423940814,0.17893818,94528.0,94527.0,0.3172586]
[1740423941019,0.18225046,94528.0,94527.0,0.3172586]
[1740423941228,0.00742435,94528.0,94527.0,0.41990429]
[1740423941421,0.00331228,94528.0,94527.0,0.41990429]
[1740423941624,0.00742435,94528.0,94527.0,0.41990429]
[1740423941825,0.00331228,94528.0,94527.0,0.3172586]
[1740423942029,0.16199528,94528.0,94527.0,0.3172586]
[1740423942224,0.16610735,94528.0,94527.0,0.3172586]
[1740423942445,0.00742435,94528.0,94527.0,0.3172586]
[1740423942683,0.16199528,94528.0,94527.0,0.3172586]
[1740423943200,0.16610735,94528.0,94527.0,0.3172586]
[1740423943342,0.15614735,94528.0,94527.0,0.3172586]
[1740423945467,0.15614735,94528.0,94527.0,0.3189584]
[1740423949017,0.15614735,94528.0,94527.0,0.0096998]
[1740423949885,0.00411207,94528.0,94527.0,0.0096998]
[1740423950111,0.16279507,94528.0,94527.0,0.0096998]
[1740423950348,0.01557857,94531.0,94527.0,0.0096998]
[1740423950569,0.00410536,94528.0,94527.0,0.1683838]
[1740423950742,0.0081,94567.0,94529.0,0.08407291]
[1740423950743,0.211547,94542.0,94529.0,0.08407291]
[1740423950951,0.158651,94547.0,94530.0,0.10264569]
[1740423951188,0.00411244,94541.0,94531.0,0.126]
[1740423951382,0.15,94542.0,94532.0,0.10264569]
[1740423951574,0.00411263,94540.0,94532.0,0.10264569]
[1740423951774,0.00411317,94539.0,94532.0,0.10264569]
[1740423952124,0.15,94542.0,94533.0,0.158673]
[1740423952323,0.15,94542.0,94534.0,0.10264569]
[1740423952575,0.00411392,94541.0,94534.0,0.10264569]
[1740423953587,0.16277492,94541.0,94534.0,0.10264569]
[1740423953785,0.158663,94540.0,94534.0,0.10264569]
[1740423953992,0.00411405,94539.0,94534.0,0.10264569]
[1740423954422,0.001,94541.0,94534.0,0.10264569]
[1740423954919,0.00411441,94540.0,94534.0,0.10264569]
[1740423955140,0.00411441,94540.0,94535.0,0.3092586]
[1740423955332,0.00411441,94540.0,94539.0,0.37073691]
[1740423955477,0.0008499,94544.0,94539.0,0.3147186]
[1740423955678,0.0008499,94544.0,94541.0,0.158661]
[1740423955917,0.0008499,94544.0,94542.0,0.10264569]
[1740423956532,0.0008499,94544.0,94542.0,0.26130469]
[1740423957393,0.0008499,94544.0,94542.0,0.26530469]
[1740423957597,0.0008499,94544.0,94542.0,0.10664569]
[1740423958338,0.0008499,94544.0,94543.0,0.158657]
[1740423958482,0.0008499,94544.0,94543.0,0.33990269]
[1740423959582,0.0008499,94544.0,94543.0,0.34390269]
[1740423960513,0.0008499,94544.0,94543.0,0.18524569]
[1740423960972,0.0008499,94544.0,94543.0,0.49450429]
[1740423961176,0.0008499,94544.0,94543.0,0.65316129]
[1740423961741,0.0008499,94544.0,94543.0,0.66252129]
[1740423962376,0.0008499,94544.0,94543.0,0.65852129]
[1740423962707,0.0018499,94544.0,94543.0,0.66252129]
[1740423962899,0.0018499,94544.0,94543.0,0.65852129]
[1740423963541,0.0028499,94544.0,94543.0,0.66252129]
[1740423963713,0.0028499,94544.0,94543.0,0.51086429]
[1740423963918,0.0028499,94544.0,94543.0,0.50150429]
[1740423964527,0.0028499,94544.0,94543.0,0.49450429]
[1740423964873,0.1605059,94544.0,94543.0,0.3988586]
[1740423965093,0.0008499,94544.0,94543.0,0.3948586]
[1740423965298,0.16449065,94544.0,94543.0,0.4018586]
[1740423965496,0.0018499,94544.0,94543.0,0.3948586]
[1740423965708,0.16449065,94544.0,94543.0,0.3948586]
[1740423965919,0.16449065,94544.0,94543.0,0.014]
[1740423965920,0.16549065,94544.0,94543.0,0.014]
[1740423966126,0.16549065,94544.0,94543.0,0.007]
[1740423966325,0.00683465,94544.0,94543.0,0.26830269]
[1740423966528,0.00683465,94544.0,94543.0,0.11664569]
[1740423966667,0.0028499,94544.0,94543.0,0.11664569]
[1740423966862,0.0028499,94544.0,94543.0,0.26830269]
[1740423967140,0.0028499,94544.0,94543.0,0.35010269]
[1740423967340,0.0028499,94544.0,94543.0,0.35510269]
[1740423967674,0.0028499,94544.0,94543.0,0.35010269]
[1740423967907,0.0008499,94544.0,94543.0,0.34310269]
[1740423968472,0.0008499,94544.0,94543.0,0.34710269]
[1740423968597,0.0008499,94544.0,94543.0,0.34310269]
[1740423968799,0.0008499,94544.0,94543.0,0.34910269]
[1740423969041,0.0018499,94544.0,94543.0,0.34910269]
[1740423969219,0.0018499,94544.0,94543.0,0.65836129]
[1740423969641,0.0018499,94544.0,94543.0,0.66536129]
[1740423969838,0.0018499,94544.0,94543.0,0.50670429]
[1740423970448,0.1605059,94544.0,94543.0,0.50670429]
[1740423970661,0.00582418,94544.0,94543.0,0.50670429]
[1740423970864,0.1605059,94544.0,94543.0,0.50670429]
[1740423971240,0.16448018,94544.0,94543.0,0.42490429]
[1740423971443,0.16448018,94544.0,94543.0,0.013]
[1740423972063,0.16348018,94544.0,94543.0,0.007]
[1740423972474,0.16348018,94544.0,94543.0,0.012]
[1740423972876,0.16348018,94544.0,94543.0,0.005]
[1740423973081,0.16348018,94544.0,94543.0,0.01]
[1740423973783,0.3721358,94544.0,94543.0,0.01]
[1740423973983,0.31348018,94544.0,94543.0,0.01]
[1740423974616,0.31348018,94544.0,94543.0,0.005]
[1740423974856,0.31348018,94544.0,94528.0,0.0017]
[1740423974857,0.158681,94529.0,94528.0,0.0017]
[1740423975050,0.16264116,94529.0,94528.0,0.0017]
[1740423975861,0.00396016,94529.0,94528.0,0.26302869]
[1740423976014,0.15,94539.0,94528.0,0.10434569]
[1740423976365,0.00396357,94538.0,94529.0,0.10264569]
[1740423977090,0.158681,94529.0,94528.0,0.0047]
[1740423977565,0.16264116,94529.0,94528.0,0.0057]
[1740423977924,0.17772207,94529.0,94528.0,0.0017]
[1740423978128,0.16264116,94529.0,94528.0,0.0037]
[1740423978548,0.16264116,94529.0,94528.0,0.0017]
[1740423978926,0.16264116,94529.0,94528.0,0.0057]
[1740423979790,0.17780031,94529.0,94528.0,0.0107]
[1740423980195,0.17780031,94529.0,94528.0,0.0057]
[1740423980406,0.17780031,94529.0,94528.0,0.0087]
[1740423981196,0.17780031,94529.0,94528.0,0.0047]
[1740423981391,0.17780031,94529.0,94528.0,0.0067]
[1740423982103,0.00396016,94529.0,94528.0,0.0067]
[1740423982308,0.00396016,94529.0,94528.0,0.18634569]
[1740423982495,0.15,94540.0,94528.0,0.18634569]
[1740423982695,0.158679,94530.0,94529.0,0.10264569]
[1740423983902,0.158679,94531.0,94529.0,0.10264569]
[1740423984102,0.01524426,94540.0,94529.0,0.10264569]
[1740423984357,0.16262828,94530.0,94529.0,0.003]
[1740423984589,0.158679,94530.0,94529.0,0.003]
[1740423984797,0.31262828,94530.0,94529.0,0.003]
[1740423985200,0.36981454,94530.0,94529.0,0.003]
[1740423985428,0.00786244,94519.0,94518.0,0.00113119]
[1740423985636,0.158738,94495.0,94487.0,0.3881586]
[1740423985847,0.158738,94495.0,94482.0,0.0016982]
[1740423985848,0.31267287,94495.0,94482.0,0.0016982]
[1740423986137,0.31267287,94495.0,94494.0,0.03193195]
[1740423986491,0.40743316,94495.0,94494.0,0.03193195]
[1740423987063,0.31267287,94495.0,94494.0,0.03193195]
[1740423987627,0.31267287,94495.0,94494.0,0.03393195]
[1740423988623,0.31267287,94495.0,94494.0,0.00012995]
[1740423989044,0.31267287,94495.0,94494.0,0.00312995]
[1740423989495,0.420239,94495.0,94494.0,9.5e-07]
[1740423989647,0.52288469,94495.0,94494.0,9.5e-07]
[1740423990014,0.52288469,94495.0,94482.0,0.0016982]
[1740423990015,0.158758,94483.0,94482.0,2e-07]
[1740423990223,0.25895169,94483.0,94482.0,2e-07]
[1740423990425,0.2628763,94483.0,94482.0,2e-07]
[1740423991041,0.35320598,94483.0,94482.0,2e-07]
[1740423992571,0.50920598,94483.0,94482.0,2e-07]
[1740423992940,0.308768,94477.0,94476.0,8e-07]
[1740423993146,0.40929776,94477.0,94476.0,8e-07]
[1740423993305,0.41321652,94477.0,94476.0,8e-07]
[1740423993501,0.42775737,94477.0,94476.0,8e-07]
[1740423994145,0.158805,94455.0,94451.0,0.001699]
[1740423994558,0.16269308,94455.0,94451.0,0.001699]
[1740423995497,0.16269308,94455.0,94454.0,0.00178044]
[1740423996964,0.31269308,94455.0,94454.0,0.00178044]
[1740423998075,0.31369308,94455.0,94454.0,0.00178044]
[1740423998655,0.41013995,94455.0,94454.0,0.00178044]
[1740423998865,0.31369308,94455.0,94454.0,0.00178044]
[1740423999247,0.31269308,94455.0,94454.0,0.00178044]
[1740423999479,0.31269308,94455.0,94454.0,0.00378044]
[1740424000843,0.15388808,94455.0,94454.0,0.00378044]
[1740424001052,0.31269308,94455.0,94454.0,0.00378044]
[1740424002958,0.41445551,94455.0,94454.0,4.4e-07]
[1740424004129,0.31469308,94455.0,94454.0,4.4e-07]
[1740424005963,0.30881,94452.0,94451.0,0.001699]
[1740424006139,0.30881,94452.0,94451.0,0.001829]
[1740424006457,0.30673455,94452.0,94451.0,0.001829]
[1740424007249,0.15388455,94452.0,94451.0,0.077529]
[1740424007481,0.31269455,94452.0,94451.0,0.077529]
[1740424008139,0.31269455,94452.0,94451.0,0.001829]
[1740424009494,0.15388455,94452.0,94451.0,0.001829]
[1740424010722,0.15388455,94452.0,94451.0,0.10447469]
[1740424010981,0.15388455,94452.0,94451.0,0.18477469]
[1740424013022,0.31269455,94452.0,94451.0,0.082129]
[1740424013940,0.15388455,94452.0,94451.0,0.082129]
[1740424015261,0.31269455,94452.0,94451.0,0.082129]
[1740424016018,0.15388455,94452.0,94451.0,0.082129]
[1740424016234,0.00388455,94452.0,94451.0,0.18477469]
[1740424016704,0.15,94457.0,94451.0,0.18477469]
[1740424016909,0.00374778,94452.0,94451.0,0.082129]
[1740424017088,0.00375044,94452.0,94451.0,0.18477469]
[1740424017534,0.15,94457.0,94451.0,0.18477469]
[1740424017741,0.21168,94482.0,94457.0,0.0495]
[1740424017968,0.01393609,94469.0,94462.0,0.079]
[1740424018102,0.158778,94472.0,94466.0,0.08407291]
[1740424018306,0.0008504,94483.0,94466.0,0.08407291]
[1740424018307,0.158771,94476.0,94466.0,0.08407291]
[1740424018506,0.15,94475.0,94466.0,0.08407291]
[1740424018714,0.0008504,94483.0,94482.0,0.15876]
[1740424018914,0.007,94482.0,94474.0,0.158773]
[1740424019272,0.007,94482.0,94479.0,0.08407291]
[1740424019474,0.308763,94480.0,94479.0,0.13057291]
[1740424019815,0.158763,94480.0,94479.0,0.13057291]
[1740424020020,0.158763,94480.0,94479.0,0.20717291]
[1740424021507,0.158763,94480.0,94479.0,0.20917291]
[1740424021725,0.158763,94480.0,94479.0,0.21217291]
[1740424021926,0.16510227,94483.0,94479.0,0.21217291]
[1740424022146,0.158763,94480.0,94479.0,0.21217291]
[1740424023763,0.15,94481.0,94479.0,0.16067291]
[1740424023965,0.01510227,94483.0,94479.0,0.16067291]
[1740424023966,0.01510227,94483.0,94479.0,0.16367291]
[1740424024293,0.308761,94482.0,94479.0,0.16267291]
[1740424024490,0.308761,94482.0,94479.0,0.16067291]
[1740424024782,0.15,94482.0,94479.0,0.16267291]
[1740424025209,0.01510227,94483.0,94479.0,0.16067291]
[1740424025426,0.01510227,94483.0,94480.0,0.62358629]
[1740424025562,0.0008504,94483.0,94482.0,0.23936]
[1740424025765,0.0008504,94483.0,94482.0,0.18324569]
[1740424025962,0.1596084,94483.0,94482.0,0.18324569]
[1740424026169,0.3096084,94483.0,94482.0,0.0806]
[1740424026383,0.3096084,94483.0,94480.0,0.3092586]
[1740424026384,0.308762,94481.0,94480.0,0.3092586]
[1740424026611,0.15,94481.0,94480.0,0.3092586]
[1740424026812,0.31253675,94481.0,94480.0,0.3092586]
[1740424027021,0.308762,94481.0,94480.0,0.3092586]
[1740424027215,0.15,94480.0,94467.0,0.0774]
[1740424027504,0.0008504,94483.0,94467.0,0.0774]
[1740424027505,0.158783,94468.0,94467.0,0.0774]
[1740424027704,0.16255504,94468.0,94467.0,0.0774]
[1740424028308,0.16255504,94468.0,94467.0,0.0794]
[1740424028729,0.16355504,94468.0,94467.0,0.0804]
[1740424028934,0.16355504,94468.0,94467.0,0.0784]
[1740424029131,0.16455504,94468.0,94467.0,0.0804]
[1740424029450,0.16455504,94468.0,94467.0,0.003]
[1740424030412,0.31455504,94468.0,94467.0,0.003]
[1740424030612,0.37572436,94468.0,94467.0,0.003]
[1740424030857,0.31455504,94468.0,94467.0,0.003]
[1740424031729,0.31355504,94468.0,94467.0,0.001]
[1740424031918,0.31455504,94468.0,94467.0,0.001]
[1740424032313,0.00577204,94468.0,94467.0,0.10364569]
[1740424032540,0.002,94468.0,94467.0,0.23094569]
[1740424033375,0.001,94468.0,94467.0,0.23094569]
[1740424033575,0.00376351,94468.0,94467.0,0.22994569]
[1740424033790,0.160783,94468.0,94467.0,0.22994569]
[1740424034259,0.16255147,94468.0,94467.0,0.22994569]
[1740424034460,0.16355147,94468.0,94467.0,0.23194569]
[1740424034818,0.31355147,94468.0,94467.0,0.0809]
[1740424035068,0.31255147,94468.0,94467.0,0.0779]
[1740424035242,0.31255147,94468.0,94467.0,0.0799]
[1740424035566,0.31255147,94468.0,94467.0,0.0809]
[1740424036591,0.31255147,94468.0,94467.0,0.0789]
[1740424037021,0.15376847,94468.0,94467.0,0.0789]
[1740424037417,0.31255147,94468.0,94467.0,0.0789]
[1740424037623,0.15376847,94468.0,94467.0,0.0789]
[1740424037827,0.31255147,94468.0,94467.0,0.0779]
[1740424037997,0.31255147,94468.0,94467.0,0.0789]
[1740424038211,0.31255147,94468.0,94467.0,0.0779]
[1740424038600,0.31255147,94468.0,94467.0,0.0789]
[1740424039522,0.15376847,94468.0,94467.0,0.0789]
[1740424039728,0.31255147,94468.0,94467.0,0.0789]
[1740424040206,0.15376847,94468.0,94467.0,0.0789]
[1740424040607,0.31255147,94468.0,94467.0,0.0789]
[1740424042229,0.31255147,94468.0,94467.0,0.0809]
[1740424042462,0.31255147,94468.0,94467.0,0.003]
[1740424044061,0.31255147,94468.0,94467.0,0.002]
[1740424044471,0.31340117,94468.0,94467.0,0.002]
[1740424044675,0.31340117,94468.0,94467.0,0.003]
[1740424046002,0.38068136,94468.0,94467.0,0.003]
[1740424047177,0.3088,94458.0,94457.0,0.3092586]
[1740424047394,0.158807,94454.0,94453.0,0.0797]
[1740424047758,0.158807,94454.0,94453.0,0.07983]
[1740424048152,0.16257106,94454.0,94453.0,0.07983]
[1740424048585,0.17651936,94454.0,94453.0,0.08083]
[1740424049528,0.32494353,94454.0,94453.0,0.08083]
[1740424049727,0.32494353,94454.0,94453.0,0.00113]
[1740424049728,0.40611587,94454.0,94453.0,0.00113]
[1740424049927,0.40611587,94454.0,94452.0,0.0017014]
[1740424049928,0.158809,94453.0,94452.0,4e-07]
[1740424050128,0.45708352,94453.0,94452.0,4e-07]
[1740424050342,0.46084038,94453.0,94452.0,4e-07]
[1740424050638,0.56348607,94453.0,94452.0,4e-07]
[1740424051278,0.56448607,94453.0,94452.0,4e-07]
[1740424051677,0.56848607,94453.0,94452.0,4e-07]
[1740424051887,0.56748607,94453.0,94452.0,4e-07]
[1740424052109,0.16003138,94453.0,94452.0,4e-07]
[1740424052394,0.31884038,94453.0,94452.0,4e-07]
[1740424053373,0.158829,94441.0,94440.0,0.001699]
[1740424053578,0.158831,94440.0,94439.0,2e-07]
[1740424053979,0.16256627,94440.0,94439.0,2e-07]
[1740424054680,0.31256627,94440.0,94439.0,2e-07]
[1740424055181,0.31756627,94440.0,94439.0,2e-07]
[1740424058514,0.42016948,94440.0,94439.0,2e-07]
[1740424058862,0.308837,94436.0,94435.0,8e-07]
[1740424059064,0.41148269,94436.0,94435.0,8e-07]
[1740424059317,0.4152095,94436.0,94435.0,8e-07]
[1740424060266,0.4162095,94436.0,94435.0,8e-07]
[1740424060863,0.51746234,94436.0,94435.0,8e-07]
[1740424061707,0.51646234,94436.0,94435.0,8e-07]
[1740424061905,0.4152095,94436.0,94431.0,0.0004]
[1740424062079,0.158884,94408.0,94407.0,0.0801]
[1740424062507,0.16260298,94408.0,94407.0,0.0801]
[1740424063580,0.16260298,94408.0,94407.0,0.08053356]
[1740424065734,0.37123158,94408.0,94407.0,0.00043356]
[1740424067654,0.37823158,94408.0,94407.0,0.00043356]
[1740424068718,0.31960298,94408.0,94407.0,0.00043356]
[1740424068867,0.31660298,94408.0,94407.0,0.00043356]
[1740424069054,0.32060298,94408.0,94407.0,0.00128326]
[1740424069254,0.31660298,94408.0,94407.0,0.00128326]
[1740424070053,0.31260298,94408.0,94407.0,0.00128326]
[1740424070310,0.31660298,94408.0,94407.0,0.00128326]
[1740424070677,0.32060298,94408.0,94407.0,0.00128326]
[1740424072742,0.16171898,94408.0,94407.0,0.07808326]
[1740424072964,0.32060298,94408.0,94407.0,0.12518326]
[1740424073529,0.31260298,94408.0,94407.0,0.12518326]
[1740424073930,0.31760298,94408.0,94407.0,0.07808326]
[1740424075051,0.39200566,94408.0,94407.0,0.07808326]
[1740424075495,0.38800566,94408.0,94407.0,0.07808326]
[1740424075698,0.31360298,94408.0,94407.0,0.07808326]
[1740424076076,0.31360298,94408.0,94407.0,0.00128326]
[1740424079985,0.31360298,94408.0,94407.0,0.07938326]
[1740424080616,0.15471898,94408.0,94407.0,0.07938326]
[1740424081027,0.31360298,94408.0,94407.0,0.07938326]
[1740424081243,0.15471898,94408.0,94407.0,0.07938326]
[1740424081446,0.31360298,94408.0,94407.0,0.07938326]
[1740424085806,0.31360298,94408.0,94407.0,0.00128326]
[1740424095327,0.41624867,94408.0,94407.0,0.00128326]
[1740424096021,0.41624867,94408.0,94407.0,2.6e-07]
[1740424096269,0.41524867,94408.0,94407.0,2.6e-07]
[1740424097419,0.41924867,94408.0,94407.0,2.6e-07]
[1740424097644,0.52189436,94408.0,94407.0,2.6e-07]
[1740424098088,0.42324867,94408.0,94407.0,2.6e-07]
[1740424101371,0.32060298,94408.0,94407.0,0.08170026]
[1740424102314,0.31660298,94408.0,94407.0,0.08170026]
[1740424102543,0.31260298,94408.0,94407.0,0.08170026]
[1740424103016,0.31260298,94408.0,94407.0,0.13120026]
[1740424103249,0.31360298,94408.0,94407.0,0.13120026]
[1740424103476,0.31460298,94408.0,94407.0,0.13120026]
[1740424103933,0.31360298,94408.0,94407.0,0.13120026]
[1740424105024,0.31260298,94408.0,94407.0,0.13120026]
[1740424105226,0.31360298,94408.0,94407.0,0.13120026]
[1740424105428,0.15471898,94408.0,94407.0,0.13120026]
[1740424105831,0.31360298,94408.0,94407.0,0.13120026]
[1740424106464,0.31530318,94408.0,94407.0,0.13120026]
[1740424107178,0.15641918,94408.0,94407.0,0.13120026]
[1740424107377,0.31530318,94408.0,94407.0,0.13120026]
[1740424107972,0.15641918,94408.0,94407.0,0.13120026]
[1740424108441,0.31530318,94408.0,94407.0,0.13120026]
[1740424108821,0.00641918,94408.0,94407.0,0.13120026]
[1740424109018,0.00641918,94408.0,94407.0,0.39273195]
[1740424109243,0.0027002,94408.0,94407.0,0.39273195]
[1740424109642,0.0027002,94408.0,94407.0,0.23384595]
[1740424110031,0.00526979,94408.0,94407.0,0.23384595]
[1740424110235,0.0017002,94408.0,94407.0,0.23384595]
[1740424110428,0.00527055,94408.0,94407.0,0.23384595]
[1740424110656,0.0017002,94408.0,94407.0,0.23384595]
[1740424110991,0.00627055,94408.0,94407.0,0.23384595]
[1740424111180,0.1615842,94408.0,94407.0,0.13120026]
[1740424111595,0.16615455,94408.0,94407.0,0.13120026]
[1740424111899,0.00727055,94408.0,94407.0,0.13120026]
[1740424112318,0.00627055,94408.0,94407.0,0.13120026]
[1740424112505,0.00527055,94408.0,94407.0,0.13120026]
[1740424112896,0.16415455,94408.0,94407.0,0.13120026]
[1740424113066,0.00527055,94408.0,94407.0,0.13120026]
[1740424113459,0.00627055,94408.0,94407.0,0.13120026]
[1740424113702,0.1615842,94408.0,94407.0,0.13120026]
[1740424113910,0.16503182,94408.0,94407.0,0.13120026]
[1740424114814,0.31503182,94408.0,94407.0,0.08170026]
[1740424115018,0.37044679,94408.0,94407.0,2.6e-07]
[1740424115450,0.36944679,94408.0,94407.0,2.6e-07]
[1740424116051,0.31403182,94408.0,94407.0,2.6e-07]
[1740424116438,0.31503182,94408.0,94407.0,2.6e-07]
[1740424119257,0.31603182,94408.0,94407.0,2.6e-07]
[1740424119622,0.15614782,94408.0,94407.0,2.6e-07]
[1740424119841,0.31703182,94408.0,94407.0,2.6e-07]
[1740424120445,0.31603182,94408.0,94407.0,2.6e-07]
[1740424120621,0.31503182,94408.0,94407.0,2.6e-07]
[1740424120822,0.31703182,94408.0,94407.0,2.6e-07]
[1740424121249,0.38976977,94408.0,94407.0,2.6e-07]
[1740424122629,0.39076977,94408.0,94407.0,2.6e-07]
[1740424122769,0.38976977,94408.0,94407.0,2.6e-07]
[1740424122974,0.39176977,94408.0,94407.0,2.6e-07]
[1740424123816,0.39276977,94408.0,94407.0,2.6e-07]
[1740424124389,0.31703182,94408.0,94407.0,2.6e-07]
[1740424126360,0.31703182,94408.0,94407.0,0.07690026]
[1740424126732,0.003,94408.0,94407.0,0.07690026]
[1740424126935,0.16543071,94408.0,94407.0,0.07690026]
[1740424128747,0.31543071,94408.0,94407.0,0.07690026]
[1740424129344,0.31543071,94408.0,94407.0,2.6e-07]
[1740424130855,0.31713091,94408.0,94407.0,2.6e-07]
[1740424131287,0.39287877,94408.0,94407.0,2.6e-07]
[1740424131523,0.31713091,94408.0,94407.0,2.6e-07]
[1740424133609,0.4197766,94408.0,94407.0,2.6e-07]
[1740424134371,0.308898,94400.0,94399.0,0.00165946]
[1740424134595,0.308898,94400.0,94399.0,0.00176026]
[1740424134851,0.31258104,94400.0,94399.0,0.00176026]
[1740424136668,0.31758104,94400.0,94399.0,0.00176026]
[1740424142030,0.32555274,94400.0,94399.0,0.00176026]
[1740424142691,0.32555274,94400.0,94399.0,0.07946026]
[1740424143700,0.00568304,94400.0,94399.0,0.12936026]
[1740424143919,0.16458104,94400.0,94399.0,0.12936026]
[1740424144127,0.158898,94400.0,94399.0,0.12936026]
[1740424144331,0.16428288,94400.0,94399.0,0.12936026]
[1740424144545,0.16728288,94400.0,94399.0,0.12936026]
[1740424144747,0.16528288,94400.0,94399.0,0.12936026]
[1740424145529,0.00638488,94400.0,94399.0,0.12936026]
[1740424145727,0.16228288,94400.0,94399.0,0.12936026]
[1740424146002,0.158898,94400.0,94399.0,0.07946026]
[1740424146138,0.00323306,94400.0,94399.0,0.07946026]
[1740424146482,0.158892,94404.0,94399.0,0.07946026]
[1740424146688,0.158893,94403.0,94399.0,0.07946026]
[1740424146919,0.00323439,94403.0,94399.0,0.07946026]
[1740424147257,0.158891,94404.0,94399.0,0.07946026]
[1740424147451,0.158898,94400.0,94399.0,0.07946026]
[1740424147655,0.00323456,94403.0,94399.0,0.07946026]
[1740424147860,0.211857,94403.0,94399.0,0.07946026]
[1740424148065,0.158898,94400.0,94399.0,0.07946026]
[1740424148497,0.1621317,94400.0,94399.0,0.07946026]
[1740424148694,0.0032337,94400.0,94399.0,0.07946026]
[1740424149059,0.158894,94403.0,94399.0,0.07946026]
[1740424149261,0.16213136,94400.0,94399.0,0.07946026]
[1740424149481,0.158893,94403.0,94399.0,0.07946026]
[1740424149732,0.00323336,94400.0,94399.0,0.18210595]
[1740424150017,0.15,94411.0,94399.0,0.18210595]
[1740424150018,0.158888,94406.0,94400.0,0.0828]
[1740424150156,0.15,94429.0,94401.0,0.0828]
[1740424150358,0.158894,94402.0,94401.0,0.0828]
[1740424150561,0.158893,94403.0,94401.0,0.0828]
[1740424150761,0.00323425,94402.0,94401.0,0.0828]
[1740424151205,0.158892,94404.0,94401.0,0.0828]
[1740424151638,0.158894,94402.0,94401.0,0.0828]
[1740424152004,0.16212825,94402.0,94401.0,0.0828]
[1740424152272,0.158898,94400.0,94399.0,0.00176026]
[1740424152663,0.16213216,94400.0,94399.0,0.00176026]
[1740424155276,0.31213216,94400.0,94399.0,0.00176026]
[1740424155680,0.41477785,94400.0,94399.0,2.6e-07]
[1740424156548,0.41777785,94400.0,94399.0,2.6e-07]
[1740424156752,0.51343081,94400.0,94399.0,2.6e-07]
[1740424157989,0.51643081,94400.0,94399.0,2.6e-07]
[1740424158196,0.51343081,94400.0,94399.0,2.6e-07]
[1740424158376,0.308911,94392.0,94391.0,0.00036026]
[1740424158556,0.308911,94392.0,94391.0,0.00040359]
[1740424158755,0.31214228,94392.0,94391.0,0.00040359]
[1740424160104,0.31314228,94392.0,94391.0,0.00040359]
[1740424160665,0.32580792,94392.0,94391.0,0.00040359]
[1740424161340,0.32480792,94392.0,94391.0,0.00040359]
[1740424161769,0.32680792,94392.0,94391.0,0.07960359]
[1740424161972,0.17680792,94392.0,94391.0,0.07960359]
[1740424162722,0.01789692,94392.0,94391.0,0.07960359]
[1740424162938,0.01589692,94392.0,94391.0,0.12730359]
[1740424163174,0.00323128,94392.0,94391.0,0.22994928]
[1740424163384,0.211867,94399.0,94391.0,0.15074928]
[1740424163584,0.00790581,94411.0,94394.0,0.0781]
[1740424163832,0.158903,94397.0,94394.0,0.0781]
[1740424164040,0.16206909,94396.0,94394.0,0.0781]
[1740424164213,0.158906,94395.0,94394.0,0.0781]
[1740424164560,0.16206965,94395.0,94394.0,0.0781]
[1740424173587,0.382866,94395.0,94394.0,0.0781]
[1740424173790,0.308911,94392.0,94391.0,0.00125379]
[1740424174150,0.3119495,94392.0,94391.0,0.00125379]
[1740424175016,0.3139495,94392.0,94391.0,0.00125379]
[1740424176117,0.3159495,94392.0,94391.0,0.00125379]
[1740424182168,0.41127729,94392.0,94391.0,0.00125379]
[1740424182347,0.3159495,94392.0,94391.0,0.00125379]
[1740424185870,0.3139495,94392.0,94391.0,0.00125379]
[1740424187234,0.3119495,94392.0,94391.0,0.00125379]
[1740424187438,0.3129495,94392.0,94391.0,0.00125379]
[1740424189170,0.1540385,94392.0,94391.0,0.08245379]
[1740424189380,0.3129495,94392.0,94391.0,0.08245379]
[1740424192985,0.0040385,94392.0,94391.0,0.18509948]
[1740424193408,0.001,94392.0,94391.0,0.18509948]
[1740424193657,0.00396986,94392.0,94391.0,0.18509948]
[1740424193976,0.001,94392.0,94391.0,0.18509948]
[1740424194177,0.0017004,94395.0,94392.0,0.08]
[1740424194351,0.0017004,94395.0,94393.0,0.10264569]
[1740424194557,0.0017004,94395.0,94393.0,0.18264569]
[1740424194558,0.00297075,94394.0,94393.0,0.18264569]
[1740424194942,0.0017004,94395.0,94393.0,0.18264569]
[1740424195136,0.00297075,94394.0,94393.0,0.18264569]
[1740424196188,0.0017004,94395.0,94394.0,0.075]
[1740424196358,0.0017004,94395.0,94394.0,0.17764569]
[1740424198461,0.0017004,94395.0,94394.0,0.33655369]
[1740424198706,0.0017004,94395.0,94394.0,0.70405369]
[1740424199979,0.0017004,94395.0,94394.0,0.54514569]
[1740424200219,0.0027004,94395.0,94394.0,0.54514569]
[1740424200480,0.1616064,94395.0,94394.0,0.4425]
[1740424200848,0.16454005,94395.0,94394.0,0.4425]
[1740424201068,0.16554005,94395.0,94394.0,0.4435]
[1740424201502,0.16354005,94395.0,94394.0,0.4425]
[1740424202064,0.21187,94398.0,94394.0,0.3994]
[1740424202267,0.16172533,94395.0,94394.0,0.3994]
[1740424202460,0.158906,94395.0,94394.0,0.3994]
[1740424202747,0.16172197,94395.0,94394.0,0.3994]
[1740424202884,0.16172197,94395.0,94394.0,0.3974]